bitfinex-derivatives/quotes_ETHF0:USTF0_20250316
["timestamp","ask_amount","ask_price","bid_price","bid_amount"]
[1742153999298,15.82099,1877.5,1877.3,4.085]
[1742153999595,10.41682,1877.4,1877.2,0.85231]
[1742153999988,10.41682,1877.4,1877.3,0.85227]
[1742153999989,9.5646,1877.4,1877.3,0.85227]
[1742154000201,9.5646,1877.4,1877.2,0.85228]
[1742154000496,9.5646,1877.4,1877.3,0.85227]
[1742154001195,9.5646,1877.4,1877.3,4.93427]
[1742154004600,15.6706,1877.5,1877.4,0.85222]
[1742154004797,15.6706,1877.5,1877.4,17.28542]
[1742154005097,5.3863,1877.7,1877.6,0.85213]
[1742154005291,9.8994,1877.8,1877.7,0.85208]
[1742154005496,7.251,1878.0,1877.9,0.85199]
[1742154005694,17.1504,1878.0,1877.9,0.85199]
[1742154005895,9.8994,1878.0,1877.9,0.85199]
[1742154006092,9.8994,1878.0,1877.8,16.4332]
[1742154006093,9.8994,1878.0,1877.8,17.2852]
[1742154006296,9.8994,1878.0,1877.9,10.32529]
[1742154007095,9.8994,1878.0,1877.9,14.40529]
[1742154007599,9.8994,1878.0,1877.9,13.5533]
[1742154007795,9.8994,1878.0,1877.9,4.08]
[1742154007796,10.75135,1878.0,1877.9,4.08]
[1742154008193,9.8994,1878.0,1877.6,13.1054]
[1742154008397,7.3491,1877.9,1877.7,0.85207]
[1742154008600,9.0585,1877.8,1877.7,0.85208]
[1742154008802,14.6434,1877.8,1877.7,0.85208]
[1742154011207,14.6434,1877.8,1877.6,9.8775]
[1742154011406,9.1936,1877.7,1877.6,9.8775]
[1742154013300,9.1936,1877.7,1877.6,9.0254]
[1742154013606,9.1936,1877.7,1877.6,9.87753]
[1742154014407,7.3491,1877.9,1877.6,9.0254]
[1742154014604,9.3914,1878.0,1877.9,0.85198]
[1742154014910,9.3914,1878.0,1877.8,17.01511]
[1742154015105,9.3914,1878.0,1877.8,11.56711]
[1742154015608,9.3914,1878.0,1877.8,11.56713]
[1742154016006,9.3914,1878.0,1877.9,0.85199]
[1742154016205,9.3914,1878.0,1877.8,11.56711]
[1742154016406,9.3914,1878.0,1877.8,4.92901]
[1742154016611,9.3914,1878.0,1877.9,0.85199]
[1742154017611,14.673,1878.1,1878.0,0.85195]
[1742154018201,10.0545,1878.3,1878.2,0.85186]
[1742154018406,19.1663,1878.3,1878.2,0.85186]
[1742154018608,12.3196,1878.3,1878.2,0.85186]
[1742154018811,10.095,1878.4,1878.3,0.85181]
[1742154019218,14.5068,1878.4,1878.3,0.85181]
[1742154020011,14.5068,1878.4,1878.2,0.85183]
[1742154020212,4.829,1878.8,1878.1,4.076]
[1742154020213,3.2078,1878.8,1878.1,4.076]
[1742154020416,9.2422,1878.4,1878.3,0.85178]
[1742154020625,10.0266,1878.6,1878.5,0.85172]
[1742154020815,9.2422,1878.6,1878.5,0.85172]
[1742154021214,6.8188,1878.8,1878.7,0.85163]
[1742154021521,9.2422,1878.8,1878.7,0.85163]
[1742154022118,4.7,1878.9,1878.8,0.85159]
[1742154022320,13.9422,1878.9,1878.7,4.92559]
[1742154022521,13.9422,1878.9,1878.8,9.6826]
[1742154022729,13.9422,1878.9,1878.7,4.074]
[1742154023015,13.9422,1878.9,1878.6,0.85165]
[1742154023016,9.1258,1878.8,1878.6,13.2554]
[1742154023224,9.1258,1878.8,1878.6,4.074]
[1742154023522,9.1258,1878.8,1878.7,10.03303]
[1742154024611,12.338,1879.0,1878.9,0.85154]
[1742154024920,5.5192,1879.0,1878.9,0.85154]
[1742154025512,5.5192,1879.0,1878.9,4.92454]
[1742154026115,5.5192,1879.0,1878.9,4.073]
[1742154026312,5.5192,1879.0,1878.8,4.073]
[1742154026517,9.3566,1878.9,1878.8,4.073]
[1742154026712,9.3566,1878.9,1878.8,4.92459]
[1742154026918,5.5192,1879.0,1878.9,0.85154]
[1742154027127,5.5192,1879.0,1878.9,7.53864]
[1742154027924,5.5192,1879.0,1878.9,6.6871]
[1742154028125,5.5192,1879.0,1878.9,0.85154]
[1742154028423,5.5192,1879.0,1878.8,4.92456]
[1742154028624,9.3566,1878.9,1878.8,4.92456]
[1742154029823,9.3566,1878.9,1878.8,4.073]
[1742154031222,9.3566,1878.9,1878.8,4.92459]
[1742154033028,9.3566,1878.9,1878.8,4.073]
[1742154033328,9.3566,1878.9,1878.7,0.85161]
[1742154033534,6.8249,1878.8,1878.7,0.85161]
[1742154036230,9.3566,1878.9,1878.6,7.2768]
[1742154036931,9.3566,1878.9,1878.7,0.85163]
[1742154038425,9.3566,1878.9,1878.8,0.85159]
[1742154039331,9.3566,1878.9,1878.7,0.85161]
[1742154039724,9.3566,1878.9,1878.7,4.067]
[1742154039924,9.3566,1878.9,1878.6,4.91866]
[1742154040131,9.3566,1878.9,1878.6,4.067]
[1742154040534,3.2078,1878.7,1878.5,4.91869]
[1742154040836,22.0292,1878.6,1878.5,4.91869]
[1742154041035,22.0292,1878.6,1878.3,0.85178]
[1742154041333,9.4051,1878.5,1878.4,0.85177]
[1742154041733,9.4051,1878.5,1878.3,4.91878]
[1742154042127,9.4051,1878.5,1878.3,0.85178]
[1742154042323,9.4051,1878.5,1878.2,3.2078]
[1742154042534,3.2078,1878.3,1878.1,0.85188]
[1742154042737,16.3839,1878.2,1878.0,4.91792]
[1742154042928,9.4051,1878.1,1878.0,4.91792]
[1742154045233,9.4051,1878.1,1878.0,14.14912]
[1742154045639,9.4051,1878.1,1877.9,0.00800705]
[1742154045831,17.3129,1878.1,1877.9,0.00800705]
[1742154046136,18.16483,1878.1,1877.9,0.00800705]
[1742154046335,9.7941,1878.0,1877.9,0.00800705]
[1742154048129,13.0019,1878.0,1877.9,0.00800705]
[1742154049732,13.0019,1878.0,1877.9,0.85999705]
[1742154050434,4.7,1878.1,1878.0,0.85195]
[1742154050641,9.9414,1878.2,1878.1,0.8519]
[1742154050837,3.2078,1878.3,1878.2,0.85186]
[1742154051133,18.30266,1878.7,1878.3,0.85181]
[1742154051134,3.2078,1878.5,1878.3,0.85181]
[1742154051331,3.2078,1878.5,1878.4,9.1498]
[1742154051533,3.2078,1878.5,1878.1,0.8519]
[1742154051729,3.2078,1878.5,1878.0,7.2138]
[1742154052038,3.2078,1878.3,1877.9,4.07300705]
[1742154052240,12.751,1878.2,1878.0,9.1498]
[1742154052539,12.751,1878.2,1878.0,10.00172]
[1742154053433,12.751,1878.2,1878.1,0.8519]
[1742154053937,12.751,1878.2,1878.0,10.00172]
[1742154054338,12.751,1878.2,1877.9,4.92497705]
[1742154054538,12.751,1878.2,1878.0,0.85194]
[1742154054936,12.751,1878.2,1878.1,0.8519]
[1742154055841,12.751,1878.2,1878.0,9.8266]
[1742154055842,13.60286,1878.2,1878.0,9.8266]
[1742154056041,3.2078,1878.1,1877.9,0.00800705]
[1742154056243,0.85195,1878.0,1877.9,0.00800705]
[1742154057247,8.75973,1878.1,1877.9,0.85999705]
[1742154058241,0.85195,1878.0,1877.9,0.00800705]
[1742154061650,5.55195,1878.0,1877.9,0.00800705]
[1742154065360,0.85208,1877.7,1877.6,9.2101]
[1742154065658,4.05988,1877.7,1877.6,9.2101]
[1742154066254,13.80838,1877.7,1877.6,9.2101]
[1742154069562,0.85208,1877.7,1877.6,9.2101]
[1742154069758,0.85208,1877.7,1877.6,10.06223]
[1742154070063,0.85208,1877.7,1877.6,9.2101]
[1742154070263,0.85208,1877.7,1877.6,10.06223]
[1742154070453,0.85208,1877.7,1877.6,9.2101]
[1742154070658,9.10243601,1877.8,1877.6,9.2101]
[1742154070858,0.85208,1877.7,1877.6,9.2101]
[1742154071264,9.10243601,1877.8,1877.7,0.85208]
[1742154071464,0.00793601,1877.8,1877.7,0.85208]
[1742154071767,0.00793601,1877.8,1877.7,4.059]
[1742154071967,9.02143601,1877.8,1877.7,4.059]
[1742154072458,9.87347601,1877.8,1877.7,4.059]
[1742154072961,15.59287601,1877.8,1877.7,4.059]
[1742154073162,0.00793601,1877.8,1877.7,4.91108]
[1742154073362,0.00793601,1877.8,1877.7,4.059]
[1742154073666,0.00793601,1877.8,1877.7,4.91108]
[1742154076659,0.00793601,1877.8,1877.7,4.059]
[1742154076861,0.00793601,1877.8,1877.6,9.2101]
[1742154077159,0.00793601,1877.8,1877.6,10.06223]
[1742154077364,9.94413601,1877.8,1877.6,10.06223]
[1742154078163,0.00793601,1877.8,1877.7,0.85208]
[1742154078371,3.2078,1878.2,1877.7,3.2078]
[1742154078560,3.2078,1878.2,1878.0,0.85194]
[1742154078761,3.2078,1878.2,1878.1,9.9283]
[1742154079066,3.2078,1878.2,1878.1,10.7802]
[1742154079265,5.6062,1878.3,1878.1,10.7802]
[1742154079462,5.6062,1878.3,1878.2,0.85186]
[1742154080266,5.6062,1878.3,1878.1,9.9283]
[1742154080469,6.7077,1878.2,1878.0,0.85193]
[1742154080654,9.9155,1878.2,1878.0,0.85194]
[1742154080855,9.9155,1878.2,1878.1,0.8519]
[1742154081861,9.9155,1878.2,1878.0,9.345]
[1742154082064,9.9155,1878.2,1878.0,10.19692]
[1742154082569,9.9155,1878.2,1878.1,0.8519]
[1742154082864,6.7077,1878.2,1878.1,0.8519]
[1742154085670,5.6062,1878.3,1878.2,0.85186]
[1742154085967,6.45802,1878.3,1878.0,9.345]
[1742154086169,6.45802,1878.3,1878.0,10.19691]
[1742154086471,5.6062,1878.3,1878.0,9.345]
[1742154086673,5.6062,1878.3,1878.1,0.85188]
[1742154086971,6.45801,1878.3,1878.2,9.961]
[1742154087470,0.85187,1878.2,1878.0,0.85191]
[1742154087671,0.85187,1878.2,1878.0,10.81291]
[1742154087864,0.8519,1878.1,1878.0,9.961]
[1742154088067,8.1361,1878.1,1878.0,9.961]
[1742154089672,8.1361,1878.1,1878.0,10.81295]
[1742154089861,7.2842,1878.1,1878.0,10.81295]
[1742154090067,5.6062,1878.3,1878.1,0.8519]
[1742154090361,13.67124,1878.3,1878.2,9.7455]
[1742154091276,0.85189,1878.2,1878.0,0.85191]
[1742154091478,4.05969,1878.2,1878.0,10.59741]
[1742154091677,4.05969,1878.2,1878.1,0.8519]
[1742154091877,0.8519,1878.1,1878.0,10.59741]
[1742154092074,0.8519,1878.1,1878.0,9.7455]
[1742154092574,0.8519,1878.1,1878.0,10.59745]
[1742154092876,4.05967,1878.2,1878.1,0.8519]
[1742154093077,0.8519,1878.1,1878.0,10.59743]
[1742154093680,4.05969,1878.2,1878.0,10.59743]
[1742154093881,4.05969,1878.2,1878.1,0.8519]
[1742154094080,3.2078,1878.2,1878.1,0.8519]
[1742154094581,3.2078,1878.2,1878.1,6.538]
[1742154094979,5.6062,1878.3,1878.2,0.85186]
[1742154095278,5.6062,1878.3,1878.2,10.07796]
[1742154095583,8.75958,1878.4,1878.2,10.07792]
[1742154095771,13.5858,1878.4,1878.3,0.85181]
[1742154095970,3.2078,1878.6,1878.3,6.7594]
[1742154096169,3.2078,1878.6,1878.5,0.85172]
[1742154096380,12.3746,1878.6,1878.4,15.71924]
[1742154096580,12.3746,1878.6,1878.5,9.1814]
[1742154096985,12.3746,1878.6,1878.5,10.03312]
[1742154097276,9.1668,1878.6,1878.5,10.03312]
[1742154097469,4.7,1878.7,1878.6,0.85168]
[1742154097673,9.1668,1878.8,1878.7,0.85163]
[1742154099475,9.1668,1878.8,1878.7,7.55533]
[1742154099979,3.2078,1878.9,1878.8,0.85159]
[1742154100183,3.2078,1878.9,1878.8,9.417]
[1742154101086,4.05936,1878.9,1878.7,4.05]
[1742154101281,16.4259,1878.8,1878.7,4.90163]
[1742154101482,16.4259,1878.8,1878.7,0.85163]
[1742154103187,16.4259,1878.8,1878.6,10.26864]
[1742154103489,9.7331,1878.7,1878.6,10.26864]
[1742154103674,3.2078,1878.9,1878.8,0.85159]
[1742154103873,12.9409,1878.9,1878.8,0.85159]
[1742154104291,3.2078,1878.9,1878.8,9.92909]
[1742154104477,4.7,1879.0,1878.9,0.85154]
[1742154104678,4.7,1879.0,1878.9,7.73004]
[1742154104875,3.2078,1879.1,1879.0,0.85149]
[1742154105074,3.2078,1879.1,1879.0,10.11799]
[1742154105588,3.2078,1879.1,1879.0,9.2665]
[1742154105883,3.2078,1879.1,1879.0,0.85149]
[1742154106089,3.2078,1879.1,1878.9,17.35032]
[1742154106386,15.6326,1879.0,1878.9,17.35032]
[1742154107191,15.6326,1879.0,1878.9,16.4988]
[1742154107491,15.6326,1879.0,1878.9,17.35034]
[1742154108989,15.6326,1879.0,1878.9,10.11804]
[1742154110279,15.6326,1879.0,1878.8,4.89856]
[1742154110585,9.0511,1878.9,1878.8,10.10596]
[1742154110794,16.0456,1878.9,1878.8,10.10596]
[1742154112896,23.9534,1878.9,1878.7,0.85162]
[1742154113190,23.9534,1878.9,1878.5,0.00798573]
[1742154113191,9.4228,1878.8,1878.5,0.00798573]
[1742154113379,4.05948,1878.6,1878.5,0.00798573]
[1742154113580,8.75948,1878.6,1878.5,0.00798573]
[1742154113780,0.85179,1878.4,1878.2,4.89583]
[1742154113988,4.05959,1878.4,1878.1,10.28837]
[1742154114294,9.1602,1878.3,1878.2,0.85186]
[1742154115789,9.1602,1878.3,1878.1,9.44448573]
[1742154115998,9.1602,1878.3,1878.1,10.29635573]
[1742154116195,9.1602,1878.3,1878.2,0.85186]
[1742154116794,0.00798573,1878.4,1878.3,0.85181]
[1742154118398,0.00798573,1878.4,1878.3,27.22691]
[1742154127609,0.00798573,1878.4,1878.3,9.6248]
[1742154127909,0.85976573,1878.4,1878.1,4.89985573]
[1742154128209,22.3465,1878.3,1878.1,0.85988573]
[1742154128410,9.7806,1878.2,1878.1,0.85988573]
[1742154129107,9.7806,1878.2,1878.1,0.00798573]
[1742154129508,9.7806,1878.2,1878.1,9.29288573]
[1742154129708,9.7806,1878.2,1878.1,10.14478573]
[1742154130304,9.7806,1878.2,1878.1,9.29288573]
[1742154130713,9.7806,1878.2,1878.1,10.14478573]
[1742154131914,0.00798573,1878.4,1878.3,0.85181]
[1742154132309,0.00798573,1878.4,1878.3,10.51571]
[1742154132510,9.49438573,1878.4,1878.3,10.51571]
[1742154133609,0.00798573,1878.4,1878.3,10.51571]
[1742154134417,9.49438573,1878.4,1878.3,10.51571]
[1742154135116,0.00798573,1878.4,1878.3,10.51571]
[1742154137214,9.04638573,1878.4,1878.3,10.51571]
[1742154138719,0.00798573,1878.4,1878.3,10.51571]
[1742154140015,9.0539,1878.8,1878.7,0.85163]
[1742154141214,4.7,1878.9,1878.8,0.85159]
[1742154141415,13.8688,1878.9,1878.8,0.85159]
[1742154143317,4.7,1878.9,1878.8,0.85159]
[1742154143520,13.8688,1878.9,1878.8,0.85159]
[1742154143716,9.1688,1878.9,1878.8,0.85159]
[1742154144921,3.2078,1879.0,1878.9,0.85154]
[1742154145115,3.2078,1879.0,1878.9,4.88554]
[1742154145321,15.4589,1879.2,1879.1,0.85145]
[1742154146223,25.0143,1879.2,1879.1,0.85145]
[1742154147222,21.8065,1879.2,1879.1,0.85145]
[1742154148220,26.13159817,1879.9,1879.1,11.6183]
[1742154148418,22.92379817,1879.9,1879.5,3.2078]
[1742154148623,22.92379817,1879.9,1879.6,13.1513]
[1742154148624,9.8934,1879.8,1879.6,13.1513]
[1742154148825,22.4676,1879.8,1879.7,0.85118]
[1742154149120,22.4676,1879.8,1879.6,14.0025]
[1742154149323,12.5742,1879.8,1879.7,0.85118]
[1742154149623,22.92379817,1879.9,1879.8,0.85113]
[1742154150222,22.92379817,1879.9,1879.8,7.88163]
[1742154150430,22.92379817,1879.9,1879.8,9.96943]
[1742154152228,22.92379817,1879.9,1879.8,0.85113]
[1742154152524,22.92379817,1879.9,1879.7,0.85116]
[1742154152729,7.9078,1880.1,1879.8,0.85113]
[1742154152921,7.9078,1880.1,1879.5,3.2078]
[1742154153122,4.05891,1879.9,1879.5,4.031]
[1742154153321,4.05891,1879.9,1879.5,4.88226]
[1742154153724,0.85111,1879.9,1879.5,4.88226]
[1742154154124,3.2078,1879.6,1879.5,4.031]
[1742154154322,3.2078,1879.6,1879.4,0.85128]
[1742154154529,3.2078,1879.6,1879.5,0.85127]
[1742154154720,3.2078,1879.6,1879.4,0.85129]
[1742154154920,3.2078,1879.6,1879.5,0.85127]
[1742154157835,3.2078,1879.6,1879.4,9.3697]
[1742154158037,3.2078,1879.6,1879.3,4.88932573]
[1742154158231,3.2078,1879.6,1879.4,0.85131]
[1742154158538,3.2078,1879.6,1879.3,4.03798573]
[1742154158836,3.2078,1879.6,1879.3,0.00798573]
[1742154159022,0.85127,1879.5,1879.3,0.00798573]
[1742154159223,5.55127,1879.5,1879.3,0.00798573]
[1742154160135,0.85131,1879.4,1879.3,0.00798573]
[1742154160330,3.2078,1879.4,1878.9,14.1293]
[1742154160531,3.2078,1879.2,1878.9,4.028]
[1742154160725,3.2078,1879.2,1879.0,0.85149]
[1742154160930,4.7,1879.4,1879.1,0.85143]
[1742154161229,5.55135,1879.4,1879.1,0.85143]
[1742154161531,0.85137,1879.3,1879.1,0.85943573]
[1742154161725,8.76712573,1879.4,1879.1,0.00798573]
[1742154162138,8.76712573,1879.4,1879.1,0.85941573]
[1742154162435,0.00798573,1879.4,1879.3,0.85136]
[1742154163243,0.00798573,1879.4,1879.3,10.03056]
[1742154164637,0.00798573,1879.4,1879.3,13.23836]
[1742154164938,4.7,1880.0,1879.3,12.387]
[1742154165143,5.3966,1879.9,1879.6,0.85119]
[1742154165446,18.2882,1879.9,1879.6,4.87819]
[1742154165637,19.1393,1879.9,1879.6,4.027]
[1742154165837,18.2882,1879.9,1879.6,4.87822]
[1742154166038,9.9451,1879.8,1879.6,4.87822]
[1742154166446,9.9451,1879.8,1879.6,4.027]
[1742154166647,0.85118,1879.7,1879.6,4.027]
[1742154166834,0.85118,1879.7,1879.4,14.8306]
[1742154167148,15.6358,1879.6,1879.5,0.85127]
[1742154167645,15.6358,1879.6,1879.5,10.80457]
[1742154168542,3.2078,1879.9,1879.5,9.9533]
[1742154168748,15.6358,1879.8,1879.5,10.80454]
[1742154168950,9.5665,1879.7,1879.6,0.85122]
[1742154169742,9.5665,1879.7,1879.3,3.2078]
[1742154169947,9.5665,1879.7,1879.4,4.025]
[1742154170250,18.3255,1879.7,1879.4,4.025]
[1742154170450,18.3255,1879.7,1879.4,4.87631]
[1742154170647,9.5665,1879.6,1879.0,3.2078]
[1742154170844,3.2078,1879.5,1879.3,0.85136]
[1742154171044,9.5665,1879.4,1879.3,0.85136]
[1742154171250,15.4059,1879.4,1879.3,0.85136]
[1742154171648,15.4059,1879.4,1879.2,0.85136]
[1742154172755,16.25722,1879.4,1879.2,0.85136]
[1742154173052,15.4059,1879.4,1879.2,0.85136]
[1742154173351,15.4059,1879.4,1879.3,0.85136]
[1742154175250,15.4059,1879.4,1878.0,10.91246844]
[1742154175251,20.1059,1879.4,1878.6,3.2078]
[1742154175456,3.2078,1879.2,1879.0,0.85149]
[1742154175753,4.0592,1879.2,1878.9,0.85151]
[1742154176257,3.2078,1879.2,1879.0,0.85149]
[1742154176847,4.0592,1879.2,1879.0,0.85149]
[1742154177554,0.8514,1879.2,1879.0,0.85149]
[1742154177957,0.8514,1879.2,1878.9,0.85151]
[1742154178256,0.8514,1879.2,1879.0,9.0228]
[1742154178756,0.8514,1879.2,1879.0,9.87428]
[1742154179350,0.8514,1879.2,1879.0,9.0228]
[1742154179553,0.8514,1879.2,1879.0,9.87427]
[1742154179753,9.5071,1879.3,1879.0,9.0228]
[1742154180053,10.35849,1879.3,1879.0,9.0228]
[1742154180247,10.35849,1879.3,1879.0,9.87426]
[1742154180448,0.8514,1879.2,1879.0,9.0228]
[1742154180648,0.8514,1879.2,1879.0,9.87428]
[1742154181149,10.35849,1879.3,1879.1,0.85943573]
[1742154181349,0.8514,1879.2,1879.1,0.00798573]
[1742154182249,4.0592,1879.2,1879.1,0.00798573]
[1742154182553,0.8515,1879.0,1878.8,0.85156]
[1742154182754,0.8515,1879.0,1878.8,10.48646]
[1742154182955,9.7026,1878.9,1878.8,0.85156]
[1742154183651,9.7026,1878.9,1878.7,9.64288573]
[1742154183956,10.55417,1878.9,1878.7,0.00798573]
[1742154184260,10.55418,1878.9,1878.7,10.04220573]
[1742154184459,0.85159,1878.8,1878.7,9.19058573]
[1742154184650,10.55416,1878.9,1878.7,9.19058573]
[1742154184956,0.85159,1878.8,1878.7,9.19058573]
[1742154185155,9.7026,1878.9,1878.7,9.19058573]
[1742154185358,0.85159,1878.8,1878.7,9.19058573]
[1742154185658,6.71379,1878.8,1878.7,0.00798573]
[1742154186157,5.8622,1878.8,1878.7,10.04221573]
[1742154186759,5.8622,1878.8,1878.7,9.19058573]
[1742154187853,9.7026,1878.9,1878.7,9.19058573]
[1742154188462,9.7026,1878.9,1878.7,10.04221573]
[1742154188646,9.7026,1878.9,1878.7,9.19058573]
[1742154188850,0.00798573,1879.0,1878.9,0.85154]
[1742154189551,9.4025,1879.4,1878.9,9.2475]
[1742154189752,9.4025,1879.4,1879.0,14.1337]
[1742154189965,9.4025,1879.4,1879.1,9.2475]
[1742154190154,9.4025,1879.4,1879.2,0.85137]
[1742154190464,9.4025,1879.4,1879.3,10.0003]
[1742154191060,9.4025,1879.4,1879.3,10.85166]
[1742154191461,9.4025,1879.4,1879.3,10.0003]
[1742154191859,9.4025,1879.4,1879.0,3.2078]
[1742154192165,4.05918,1879.3,1878.9,0.85152]
[1742154192565,15.53641,1879.2,1879.0,10.0003]
[1742154192752,13.21246,1879.1,1878.8,6.8797]
[1742154192957,9.1532,1879.0,1878.8,17.73158]
[1742154193361,5.5318,1878.9,1878.8,17.73158]
[1742154193857,5.5318,1878.9,1878.7,0.85959573]
[1742154194065,9.8324,1878.8,1878.7,10.00499573]
[1742154200365,5.5318,1878.9,1878.7,10.00499573]
[1742154200570,5.5318,1878.9,1878.8,0.85159]
[1742154200965,5.5318,1878.9,1878.8,10.28759]
[1742154203269,5.5318,1878.9,1878.8,9.436]
[1742154203664,5.5318,1878.9,1878.8,10.28759]
[1742154206067,9.7004,1879.0,1878.9,0.85154]
[1742154206374,15.3786,1879.0,1878.9,0.85154]
[1742154206576,15.3786,1879.0,1878.8,9.436]
[1742154206873,9.3263,1878.9,1878.8,10.28759]
[1742154207270,6.8958,1879.1,1878.8,10.28759]
[1742154207271,4.7,1879.2,1878.9,2.12886]
[1742154207466,14.0263,1879.2,1879.1,0.85145]
[1742154207872,5.3922,1879.4,1879.3,0.85136]
[1742154208078,12.5341,1879.5,1879.4,0.85131]
[1742154210171,12.5341,1879.5,1879.3,9.9426]
[1742154210371,9.5587,1879.4,1879.3,10.79396]
[1742154210573,15.4357,1879.4,1879.3,10.79396]
[1742154211963,14.768,1879.7,1879.3,9.9426]
[1742154212174,9.2746,1879.6,1879.5,0.85127]
[1742154212377,9.2746,1879.6,1879.5,10.38087]
[1742154214476,9.2746,1879.6,1879.2,4.015]
[1742154214776,9.2746,1879.6,1879.1,8.809]
[1742154214777,9.0453,1879.5,1879.1,3.2078]
[1742154215082,9.0891,1879.4,1879.3,0.85134]
[1742154217175,9.0891,1879.4,1879.2,9.389]
[1742154217381,7.3558,1879.3,1879.2,10.24039]
[1742154217682,7.3558,1879.3,1879.2,10.2404]
[1742154218877,10.5636,1879.3,1879.0,0.85147]
[1742154219093,15.2282,1879.2,1879.0,0.85149]
[1742154219285,9.8306,1879.1,1879.0,0.85149]
[1742154219583,9.8306,1879.1,1879.0,10.42999]
[1742154222387,9.8306,1879.1,1879.0,9.5785]
[1742154223684,10.68205,1879.1,1878.9,0.85154]
[1742154223877,10.68205,1879.1,1878.8,23.3109]
[1742154224081,10.68205,1879.1,1878.9,0.85154]
[1742154224482,10.68205,1879.1,1878.9,9.98334]
[1742154224681,10.68205,1879.1,1878.7,0.00798573]
[1742154224682,3.2078,1879.0,1878.7,0.00798573]
[1742154224886,6.8339,1878.9,1878.7,0.00798573]
[1742154225079,22.71025,1878.9,1878.7,0.00798573]
[1742154225388,9.2657,1879.0,1878.9,0.85154]
[1742154226086,9.2657,1879.0,1878.9,9.98334]
[1742154235494,5.7591,1879.2,1879.1,0.85145]
[1742154235683,14.8836,1879.2,1879.1,0.85145]
[1742154237788,14.8836,1879.2,1879.0,0.85146]
[1742154237989,9.344,1879.1,1879.0,0.85146]
[1742154239299,10.1782,1879.4,1879.0,0.85146]
[1742154239300,6.9704,1879.4,1879.3,0.85136]
[1742154239499,16.3691,1879.4,1879.3,0.85136]
[1742154240397,16.3691,1879.4,1879.3,10.17236]
[1742154241693,9.3987,1879.4,1879.3,10.17236]
[1742154245199,9.3987,1879.4,1879.3,9.321]
[1742154245502,9.3987,1879.4,1879.2,0.85138]
[1742154245887,9.3987,1879.4,1879.3,0.85136]
[1742154246894,9.3987,1879.4,1879.3,10.56386]
[1742154249203,9.3987,1879.4,1879.3,0.85136]
[1742154249901,9.3987,1879.4,1879.3,10.10556]
[1742154255908,5.7678,1879.5,1879.4,0.85131]
[1742154257201,15.455,1879.5,1879.4,0.85131]
[1742154259008,15.455,1879.5,1879.3,9.2542]
[1742154259210,9.1009,1879.4,1879.3,10.10556]
[1742154259613,9.1009,1879.4,1879.3,9.2542]
[1742154259813,9.1009,1879.4,1879.3,10.10556]
[1742154264610,10.3882,1879.6,1879.5,0.85127]
[1742154265414,19.6198,1879.6,1879.5,0.85127]
[1742154265616,19.6198,1879.6,1879.5,10.10277]
[1742154266812,16.412,1879.6,1879.5,10.10277]
[1742154267517,16.412,1879.6,1879.5,0.85127]
[1742154267709,16.412,1879.6,1879.1,7.2048]
[1742154267710,17.26323,1879.6,1879.1,7.2048]
[1742154267908,9.8466,1879.5,1879.3,9.2736]
[1742154268110,9.8466,1879.5,1879.3,10.12493]
[1742154268411,5.7373,1879.4,1879.3,10.12493]
[1742154271417,5.7373,1879.4,1879.3,13.33273]
[1742154280721,5.7373,1879.4,1879.3,10.12493]
[1742154283118,3.2078,1879.7,1879.6,0.85122]
[1742154283323,4.7,1879.8,1879.7,0.85118]
[1742154283523,9.1525,1879.9,1879.8,0.85113]
[1742154283724,15.7389,1880.0,1879.9,0.85109]
[1742154285227,15.7389,1880.0,1879.8,10.1542]
[1742154285427,15.7389,1880.0,1879.8,10.15422]
[1742154285627,15.7389,1880.0,1879.8,0.85112]
[1742154285829,16.58995,1880.0,1879.8,0.85112]
[1742154286033,12.5311,1880.0,1879.8,0.85112]
[1742154286321,12.5311,1880.0,1879.7,9.52038573]
[1742154286528,12.5311,1880.0,1879.9,0.85109]
[1742154288727,12.5311,1880.0,1879.7,3.99898573]
[1742154288728,15.7389,1880.0,1879.7,3.99898573]
[1742154288921,0.8511,1879.9,1879.7,4.85013573]
[1742154289127,0.8511,1879.9,1879.7,0.85913573]
[1742154289429,0.85113,1879.8,1879.7,0.00798573]
[1742154289619,3.2078,1879.8,1879.7,0.85916573]
[1742154289824,4.05893,1879.8,1879.7,0.00798573]
[1742154291025,4.05893,1879.8,1879.7,0.85916573]
[1742154291226,5.55111,1879.9,1879.7,0.85916573]
[1742154291922,4.7,1879.9,1879.8,0.85113]
[1742154292122,4.7,1879.9,1879.8,9.96883]
[1742154292918,4.7,1879.9,1879.7,0.00798573]
[1742154293124,5.55111,1879.9,1879.7,0.85914573]
[1742154293327,5.55111,1879.9,1879.8,9.1177]
[1742154294628,0.85113,1879.8,1879.7,0.00798573]
[1742154295029,4.05893,1879.8,1879.7,0.00798573]
[1742154295228,13.82353,1879.8,1879.7,0.00798573]
[1742154296027,0.85127,1879.5,1879.2,12.137]
[1742154296331,6.799,1879.4,1879.3,10.41293]
[1742154296531,16.5636,1879.4,1879.3,10.41293]
[1742154297031,16.5636,1879.4,1879.3,9.5616]
[1742154297229,16.5636,1879.4,1879.3,10.41296]
[1742154298729,9.7646,1879.4,1879.3,10.41296]
[1742154299027,9.7646,1879.4,1879.3,16.06436]
[1742154299924,9.7646,1879.4,1879.3,15.213]
[1742154300233,9.7646,1879.4,1879.3,16.06436]
[1742154300525,0.00798573,1879.5,1879.4,0.85131]